bitfinex-derivatives/quotes_BTCF0:USTF0_20210109
["timestamp","ask_amount","ask_price","bid_price","bid_amount"]
[1610162351110,3.1087,39876.0,39858.0,0.00020198]
[1610162351410,3.1087,39876.0,39857.0,0.00787106]
[1610162351811,3.1087,39876.0,39859.0,0.000202]
[1610162352011,3.1087,39876.0,39858.0,0.000202]
[1610162352211,0.13632608,39860.0,39857.0,0.00766906]
[1610162352612,0.13632608,39860.0,39859.0,0.000202]
[1610162352813,0.13632608,39860.0,39857.0,0.00787106]
[1610162353012,0.13632608,39860.0,39859.0,0.000202]
[1610162353213,0.13632608,39860.0,39858.0,0.000202]
[1610162353514,0.13632608,39860.0,39857.0,0.00787106]
[1610162353915,0.13632608,39860.0,39859.0,0.000202]
[1610162354115,0.13632608,39866.0,39858.0,0.00020198]
[1610162354315,0.13632608,39866.0,39859.0,0.00020198]
[1610162354715,0.13632608,39866.0,39865.0,3.6482]
[1610162354916,0.08872,39869.0,39865.0,3.6482]
[1610162355118,0.09939,39877.0,39865.0,3.65606875]
[1610162355319,0.30654958,39897.0,39865.0,3.65606875]
[1610162355521,0.2988,39897.0,39866.0,0.00786835]
[1610162356118,0.2988,39897.0,39878.0,0.13632608]
[1610162356518,0.2988,39897.0,39879.0,0.00020188]
[1610162357320,0.2988,39897.0,39880.0,0.00020187]
[1610162357721,0.2988,39897.0,39879.0,0.00020187]
[1610162358121,0.2988,39897.0,39881.0,0.00020187]
[1610162358322,0.2988,39897.0,39880.0,0.00020189]
[1610162358522,0.2988,39897.0,39882.0,0.00020189]
[1610162358922,0.2988,39897.0,39881.0,0.00020189]
[1610162359122,0.2988,39897.0,39883.0,0.00020189]
[1610162359322,0.2988,39897.0,39882.0,0.00020189]
[1610162359522,0.2988,39897.0,39884.0,0.00020189]
[1610162359922,0.2988,39897.0,39881.0,2.8507]
[1610162360123,0.2988,39897.0,39885.0,0.00020187]
[1610162360323,0.2988,39897.0,39884.0,0.13632608]
[1610162360723,0.2988,39897.0,39885.0,0.00020187]
[1610162362125,0.13632608,39886.0,39885.0,0.00020187]
[1610162362325,0.13632608,39886.0,39882.0,0.00020187]
[1610162362525,0.13632608,39886.0,39885.0,0.00020187]
[1610162362725,0.13632608,39886.0,39883.0,0.00020187]
[1610162363129,0.13632608,39886.0,39882.0,0.00020187]
[1610162363328,0.13632608,39886.0,39884.0,0.00020187]
[1610162363527,0.13632608,39886.0,39883.0,0.00020187]
[1610162363928,0.13632608,39886.0,39885.0,0.00020187]
[1610162364130,0.13632608,39886.0,39884.0,0.00020187]
[1610162364328,0.13632608,39886.0,39885.0,0.00020187]
[1610162364929,0.13632608,39886.0,39882.0,0.00020187]
[1610162365129,0.13632608,39886.0,39885.0,0.00020187]
[1610162365529,0.13632608,39886.0,39883.0,0.00020187]
[1610162365730,0.13632608,39886.0,39885.0,0.00020187]
[1610162365930,0.13632608,39886.0,39884.0,0.00020187]
[1610162366231,0.13632608,39886.0,39885.0,0.00020187]
[1610162366830,0.13632608,39886.0,39882.0,0.00786647]
[1610162367030,0.13632608,39886.0,39885.0,0.00020193]
[1610162367230,0.13632608,39886.0,39883.0,0.00020193]
[1610162367630,0.13632608,39886.0,39885.0,0.00020193]
[1610162367831,0.13632608,39886.0,39884.0,0.00020193]
[1610162368033,0.13632608,39886.0,39885.0,0.00020195]
[1610162368632,0.13632608,39886.0,39881.0,0.00020195]
[1610162368832,0.13632608,39886.0,39885.0,0.00020193]
[1610162369133,0.13632608,39886.0,39881.0,0.00786658]
[1610162369333,0.13632608,39886.0,39885.0,0.00020193]
[1610162369633,0.13632608,39886.0,39882.0,0.00020193]
[1610162369832,0.13632608,39886.0,39885.0,0.00020193]
[1610162370232,0.13632608,39886.0,39875.0,3.6398]
[1610162370233,0.13632608,39886.0,39876.0,0.00786685]
[1610162370434,0.13632608,39886.0,39885.0,0.00020193]
[1610162370634,0.13632608,39886.0,39877.0,0.00786671]
[1610162371036,0.13632608,39886.0,39876.0,0.00786668]
[1610162371235,0.13632608,39886.0,39878.0,0.00786673]
[1610162371435,0.13632608,39886.0,39877.0,0.00786683]
[1610162371835,0.13632608,39886.0,39876.0,0.00786672]
[1610162372035,0.13632608,39886.0,39878.0,0.00786669]
[1610162372235,0.13632608,39879.0,39877.0,0.00786669]
[1610162372536,0.13632608,39879.0,39875.0,3.6398]
[1610162372736,0.13632608,39879.0,39878.0,0.00786686]
[1610162373036,0.13632608,39879.0,39876.0,0.00786686]
[1610162373438,0.13632608,39879.0,39878.0,0.00786681]
[1610162373637,0.13632608,39879.0,39877.0,0.00786673]
[1610162373838,0.13632608,39879.0,39878.0,0.00786673]
[1610162374336,0.13632608,39879.0,39876.0,0.00786673]
[1610162374736,0.13632608,39879.0,39878.0,0.00786668]
[1610162374937,0.13632608,39879.0,39877.0,0.00786671]
[1610162375136,0.13632608,39879.0,39878.0,0.00786533]
[1610162375638,0.13632608,39879.0,39876.0,0.00786527]
[1610162377539,0.13632608,39879.0,39875.0,3.6398]
[1610162377739,0.13632608,39879.0,39877.0,0.00786563]
[1610162378140,0.13632608,39879.0,39875.0,3.6398]
[1610162378141,0.13632608,39879.0,39876.0,0.00786559]
[1610162378342,0.13632608,39879.0,39878.0,0.00786566]
[1610162378559,0.13632608,39879.0,39877.0,0.00786566]
[1610162378942,0.13632608,39879.0,39878.0,0.00786574]
[1610162379344,0.13632608,39879.0,39876.0,0.00786569]
[1610162379643,0.13632608,39879.0,39878.0,0.00786577]
[1610162380044,0.13632608,39879.0,39877.0,0.00786568]
[1610162380245,0.13632608,39879.0,39878.0,0.00786568]
[1610162380647,0.13632608,39879.0,39876.0,0.02831912]
[1610162381748,0.13632608,39879.0,39875.0,0.00786581]
[1610162382047,0.13632608,39879.0,39877.0,0.00786589]
[1610162382249,0.13632608,39879.0,39876.0,0.00786586]
[1610162382548,0.13632608,39879.0,39878.0,0.00786581]
[1610162382749,0.13632608,39879.0,39878.0,0.00766534]
[1610162382948,0.13632608,39879.0,39877.0,0.00786581]
[1610162383148,0.13632608,39879.0,39878.0,0.00786571]
[1610162383550,0.13632608,39879.0,39877.0,0.00786563]
[1610162384150,3.2278,39878.0,39875.0,0.0078657]
[1610162384349,3.2278,39878.0,39874.0,0.13632608]
[1610162384653,3.2278,39878.0,39875.0,0.00786601]
[1610162385750,0.13632608,39879.0,39875.0,0.00786601]
[1610162389458,0.13632608,39879.0,39876.0,0.00786615]
[1610162389861,3.2717,39877.0,39876.0,0.00766567]
[1610162390062,3.2717,39877.0,39870.0,0.00786634]
[1610162390260,0.13632608,39879.0,39876.0,0.00786708]
[1610162390460,0.13632608,39879.0,39871.0,0.00786765]
[1610162390660,4.02031,39872.0,39847.0,0.25568608]
[1610162391061,4.02031,39872.0,39848.0,0.00786815]
[1610162392462,0.13632608,39849.0,39848.0,0.00786815]
[1610162394061,4.02031,39872.0,39848.0,0.00786815]
[1610162394462,4.02031,39872.0,39857.0,0.13632608]
[1610162394664,0.09751,39872.0,39857.0,0.13632608]
[1610162395063,0.09751,39872.0,39858.0,0.00020058]
[1610162395662,3.4412,39858.0,39857.0,0.13632608]
[1610162395865,3.4412,39858.0,39847.0,0.11936]
[1610162396063,0.08475,39882.0,39857.0,0.00020057]
[1610162396064,0.11533,39868.0,39857.0,0.00020057]
[1610162396263,0.11533,39868.0,39848.0,0.0078697]
[1610162396466,3.54522608,39849.0,39848.0,0.0078697]
[1610162396663,3.54522608,39849.0,39844.0,0.0076701]
[1610162396863,3.54522608,39849.0,39848.0,0.00020062]
[1610162397064,3.54522608,39849.0,39845.0,0.00787098]
[1610162397265,3.54522608,39849.0,39844.0,0.00767046]
[1610162397665,3.54522608,39849.0,39844.0,0.00787109]
[1610162397866,3.54522608,39849.0,39842.0,0.00787113]
[1610162398065,3.54522608,39849.0,39845.0,0.00020063]
[1610162398365,3.54522608,39849.0,39842.0,0.00787134]
[1610162398765,3.54522608,39849.0,39842.0,0.00020063]
[1610162398967,3.54522608,39849.0,39843.0,0.00020065]
[1610162399565,3.54522608,39849.0,39829.0,0.00787223]
[1610162399767,3.54522608,39849.0,39844.0,0.00020067]
[1610162399966,3.54522608,39849.0,39830.0,0.00020067]
[1610162400166,0.13632608,39849.0,39830.0,0.00020067]
[1610162400365,0.13632608,39831.0,39829.0,0.00020067]
[1610162400565,0.13632608,39831.0,39828.0,0.26188608]
[1610162400766,0.13632608,39831.0,39830.0,0.00020068]
[1610162401167,0.13632608,39831.0,39829.0,0.00020068]
[1610162401367,0.13632608,39831.0,39830.0,0.00020068]
[1610162401568,0.13632608,39831.0,39828.0,0.26188608]
[1610162401769,0.13632608,39831.0,39830.0,0.00020069]
[1610162401967,0.13632608,39831.0,39829.0,0.00020069]
[1610162402168,0.13632608,39831.0,39830.0,0.00020069]
[1610162402368,0.13632608,39831.0,39830.0,0.00020072]
[1610162402568,3.13102608,39831.0,39830.0,0.00020072]
[1610162402767,3.13102608,39831.0,39818.0,0.00020072]
[1610162402967,3.13102608,39831.0,39817.0,0.08489]
[1610162402968,3.13102608,39831.0,39830.0,0.00020074]
[1610162403169,3.13102608,39831.0,39819.0,0.00020076]
[1610162403569,3.13102608,39831.0,39830.0,0.00020076]
[1610162403769,3.13102608,39831.0,39820.0,0.00020076]
[1610162403968,3.13102608,39831.0,39830.0,0.00020076]
[1610162404269,3.13102608,39831.0,39821.0,0.00020076]
[1610162404469,0.13632608,39822.0,39808.0,0.07939]
[1610162404869,0.13632608,39822.0,39809.0,0.00020077]
[1610162405671,0.13632608,39822.0,39809.0,0.00787516]
[1610162406373,0.11196,39828.0,39814.0,0.13632608]
[1610162406976,0.11196,39828.0,39815.0,0.00020075]
[1610162408475,0.09602,39838.0,39827.0,0.13632608]
[1610162408876,3.2938,39844.0,39827.0,0.13632608]
[1610162409278,3.2938,39844.0,39810.0,3.5751]
[1610162409877,3.2938,39844.0,39811.0,0.00020074]
[1610162410478,3.2938,39844.0,39814.0,0.13632608]
[1610162410878,3.2938,39844.0,39815.0,0.00020074]
[1610162411884,3.2938,39844.0,39814.0,0.13632608]
[1610162412481,0.13632608,39815.0,39814.0,0.13632608]
[1610162413083,3.2224,39822.0,39814.0,0.13632608]
[1610162414486,3.2224,39822.0,39821.0,0.13632608]
[1610162415085,0.13632608,39824.0,39821.0,0.13632608]
[1610162418889,0.09512,39832.0,39821.0,0.13632608]
[1610162419089,3.6402,39847.0,39821.0,0.13632608]
[1610162419291,0.1569,39864.0,39821.0,0.13632608]
[1610162419490,0.1569,39864.0,39824.0,3.0561]
[1610162420492,0.1569,39864.0,39840.0,0.13632608]
[1610162421892,0.1569,39864.0,39816.0,0.09204]
[1610162422091,3.8932,39842.0,39816.0,0.09204]
[1610162422293,3.97655,39842.0,39816.0,0.09204]
[1610162422492,3.97655,39842.0,39817.0,0.00020071]
[1610162423292,3.97655,39842.0,39808.0,0.07939]
[1610162423493,3.97655,39842.0,39803.0,3.0671]
[1610162423692,3.97655,39842.0,39809.0,0.00020078]
[1610162424095,3.97655,39842.0,39804.0,0.00020078]
[1610162424293,3.97655,39842.0,39810.0,0.00020078]
[1610162424494,0.13632608,39811.0,39807.0,0.13632608]
[1610162425094,0.13632608,39811.0,39808.0,0.00020078]
[1610162425295,0.13632608,39811.0,39807.0,0.13632608]
[1610162425494,0.08879,39821.0,39807.0,0.13632608]
[1610162425894,0.08879,39821.0,39808.0,0.00020078]
[1610162426495,0.08879,39821.0,39812.0,0.13632608]
[1610162426996,0.08879,39821.0,39813.0,0.00020078]
[1610162428395,0.08879,39821.0,39803.0,0.00020098]
[1610162428596,0.13632608,39804.0,39803.0,0.00020098]
[1610162437308,0.08879,39821.0,39803.0,0.00020098]
[1610162437509,4.0851,39845.0,39806.0,3.9666]
[1610162437912,4.0851,39845.0,39807.0,0.00787557]
[1610162438608,0.1569,39844.0,39829.0,0.13632608]
[1610162438809,0.07876,39844.0,39829.0,0.13632608]
[1610162439008,0.07876,39844.0,39830.0,4.0365]
[1610162439411,0.07876,39844.0,39830.0,4.03670047]
[1610162439610,0.07876,39844.0,39831.0,0.00020047]
[1610162440610,0.13632608,39832.0,39831.0,0.00020047]
[1610162441214,0.25996608,39832.0,39825.0,0.00020047]
[1610162441414,0.25996608,39832.0,39815.0,4.0333]
[1610162441614,0.25996608,39832.0,39826.0,0.00020048]
[1610162442013,0.25996608,39832.0,39806.0,3.1972]
[1610162442215,0.25996608,39832.0,39827.0,0.0002005]
[1610162442414,0.25996608,39832.0,39807.0,0.00787564]
[1610162442616,0.12364,39832.0,39814.0,0.13632608]
[1610162443019,0.12364,39832.0,39815.0,0.00787562]
[1610162444721,0.13632608,39816.0,39815.0,0.00787562]
[1610162445121,0.13632608,39816.0,39808.0,0.00787585]
[1610162445321,0.13632608,39816.0,39815.0,0.00020052]
[1610162445722,0.13632608,39816.0,39809.0,0.00787668]
[1610162445923,0.13632608,39816.0,39815.0,0.00020054]
[1610162446122,0.13632608,39816.0,39810.0,0.00787697]
[1610162446522,0.13632608,39816.0,39815.0,0.00020054]
[1610162446721,0.13632608,39816.0,39811.0,0.00787704]
[1610162446922,0.13632608,39816.0,39815.0,0.00020054]
[1610162447322,0.13632608,39816.0,39812.0,0.00787739]
[1610162447523,0.13632608,39816.0,39815.0,0.00020054]
[1610162447723,0.49454061,39804.0,39798.0,0.13632608]
[1610162448225,0.13632608,39816.0,39799.0,0.00020055]
[1610162448424,0.13632608,39816.0,39799.0,0.00787718]
[1610162448625,3.6374,39821.0,39806.0,0.13632608]
[1610162448824,3.6374,39821.0,39799.0,0.00787718]
[1610162449024,3.6374,39821.0,39807.0,0.00787718]
[1610162449425,3.6374,39821.0,39800.0,0.00787727]
[1610162449625,3.6374,39821.0,39808.0,0.00787739]
[1610162449826,3.6374,39821.0,39801.0,0.00787747]
[1610162450025,3.6374,39821.0,39809.0,0.00020055]
[1610162450427,3.6374,39821.0,39796.0,0.02823351]
[1610162450628,3.6374,39821.0,39810.0,0.00020055]
[1610162450830,3.6374,39821.0,39797.0,0.00020055]
[1610162451228,3.6374,39821.0,39796.0,0.00787756]
[1610162451428,3.6374,39821.0,39798.0,0.00020055]
[1610162451628,3.6374,39821.0,39797.0,0.00020055]
[1610162452028,3.6374,39821.0,39796.0,0.0282375]
[1610162452230,3.6374,39821.0,39798.0,0.00020055]
[1610162452429,3.6374,39821.0,39797.0,0.00020055]
[1610162452628,0.13632608,39798.0,39797.0,0.00020055]
[1610162452828,0.13632608,39798.0,39796.0,0.02803695]
[1610162452829,0.13632608,39798.0,39796.0,0.0282375]
[1610162453030,0.13632608,39798.0,39797.0,0.00787752]
[1610162453830,0.13632608,39798.0,39795.0,0.00787761]
[1610162454030,0.13632608,39798.0,39794.0,0.23038608]
[1610162454031,0.13632608,39798.0,39797.0,0.00787766]
[1610162454430,0.54642608,39798.0,39796.0,0.00787764]
[1610162454631,0.13632608,39798.0,39797.0,0.00787775]
[1610162454832,3.91302608,39798.0,39797.0,0.00787775]
[1610162455232,3.91302608,39798.0,39795.0,0.00787817]
[1610162455432,3.91302608,39798.0,39797.0,0.00787823]
[1610162455631,3.91302608,39798.0,39796.0,0.00787843]
[1610162456033,0.13632608,39798.0,39797.0,0.00787851]
[1610162456432,0.13632608,39798.0,39788.0,4.1149]
[1610162456633,0.11129,39806.0,39797.0,0.00787855]
[1610162457034,0.11129,39806.0,39790.0,0.13632608]
[1610162457035,0.11129,39806.0,39791.0,0.00787826]
[1610162457234,0.11129,39806.0,39798.0,0.00787813]
[1610162457435,0.11129,39806.0,39792.0,0.00787845]
[1610162457736,0.11129,39806.0,39791.0,0.00787831]
[1610162458136,0.11129,39806.0,39793.0,0.00787817]
[1610162458338,0.11129,39806.0,39790.0,0.13632608]
[1610162458339,0.11129,39806.0,39792.0,0.00787791]
[1610162458540,0.11129,39806.0,39794.0,0.00787787]
[1610162458738,0.11129,39806.0,39799.0,0.13632608]
[1610162459139,0.11129,39806.0,39800.0,0.00787797]
[1610162459839,0.11129,39806.0,39789.0,0.00787844]
[1610162460239,0.11129,39806.0,39801.0,0.00020058]
[1610162460440,0.11129,39806.0,39790.0,0.00787841]
[1610162460639,0.10436,39815.0,39789.0,0.0076778]
[1610162460840,3.4608,39822.0,39793.0,0.13632608]
[1610162461240,3.4608,39822.0,39794.0,0.0078782]
[1610162462742,3.4608,39822.0,39802.0,0.13632608]
[1610162463343,3.4608,39822.0,39803.0,0.00787737]
[1610162464742,0.13632608,39804.0,39803.0,0.00787737]
[1610162465544,0.12618,39823.0,39803.0,0.00787737]
[1610162465745,0.1569,39829.0,39803.0,0.00787737]
[1610162465945,0.1569,39829.0,39803.0,3.06847737]
[1610162466545,0.1569,39829.0,39804.0,0.00787651]
[1610162466746,0.1569,39829.0,39821.0,0.13632608]
[1610162466947,0.1569,39842.0,39821.0,0.13632608]
[1610162467148,0.1569,39842.0,39804.0,0.00787651]
[1610162467348,0.1569,39842.0,39822.0,0.00020053]
[1610162467548,0.1569,39842.0,39805.0,0.00787646]
[1610162467748,0.26176,39842.0,39823.0,0.00020053]
[1610162468149,0.26176,39842.0,39806.0,0.00787613]
[1610162468350,0.26176,39842.0,39824.0,0.00020051]
[1610162468550,0.26176,39842.0,39807.0,0.00787568]
[1610162468753,0.26176,39842.0,39819.0,0.13632608]
[1610162468951,0.26176,39842.0,39825.0,0.00020049]
[1610162469152,0.26176,39842.0,39820.0,0.00787519]
[1610162469353,0.26176,39842.0,39826.0,0.00020049]
[1610162469553,0.26176,39842.0,39821.0,0.00020049]
[1610162469853,0.26176,39842.0,39820.0,0.00787517]
[1610162470253,0.26176,39842.0,39822.0,0.00020047]
[1610162470454,0.26176,39842.0,39821.0,0.00020047]
[1610162470654,0.26176,39842.0,39823.0,0.00020047]
[1610162470854,0.13632608,39824.0,39823.0,0.00020047]
[1610162471053,0.13632608,39824.0,39822.0,0.00020047]
[1610162471255,0.13632608,39824.0,39823.0,0.00020047]
[1610162471655,0.13632608,39824.0,39820.0,0.00787517]
[1610162472255,0.13632608,39824.0,39820.0,0.02822298]
[1610162472454,0.13632608,39824.0,39820.0,0.00787517]
[1610162472855,0.13632608,39828.0,39823.0,0.13632608]
[1610162473257,0.13632608,39828.0,39824.0,0.0078739]
[1610162474758,0.13632608,39828.0,39827.0,0.13632608]
[1610162475158,3.6722,39839.0,39827.0,0.14419961]
[1610162475358,0.26176,39842.0,39827.0,0.13652653]
[1610162475759,0.26176,39842.0,39828.0,0.00020045]
[1610162476758,0.26176,39842.0,39833.0,0.13632608]
[1610162477360,0.26176,39842.0,39834.0,0.00020045]
[1610162478859,0.13632608,39835.0,39834.0,0.00020045]
[1610162482766,0.26176,39842.0,39834.0,0.00020045]
[1610162482965,0.10486,39842.0,39834.0,0.00020045]
[1610162483168,0.13632608,39844.0,39834.0,0.00020045]
[1610162483568,0.13632608,39844.0,39841.0,3.595]
[1610162484170,0.13632608,39844.0,39842.0,0.0002004]
[1610162484970,0.13632608,39848.0,39843.0,0.13632608]
[1610162485370,0.13632608,39848.0,39844.0,0.00020038]
[1610162486876,0.13632608,39848.0,39847.0,0.13632608]
[1610162487276,0.13632608,39848.0,39847.0,0.13652646]
[1610162487878,0.1,39850.0,39847.0,0.13652646]
[1610162488279,0.1,39850.0,39848.0,0.0002005]
[1610162491080,0.1,39850.0,39848.0,2.9849005]
[1610162491481,0.1,39850.0,39849.0,0.0002005]
[1610162500187,0.1,39850.0,39847.0,0.0002]
[1610162500389,0.1,39850.0,39849.0,0.0002]
[1610162500692,0.1,39850.0,39833.0,0.00787244]
[1610162500889,0.1,39850.0,39849.0,0.0002]
[1610162501290,0.1,39850.0,39833.0,0.0002]
[1610162501491,0.1,39850.0,39849.0,0.0002]
[1610162501691,0.1,39850.0,39834.0,0.0002]
[1610162502094,0.1,39850.0,39833.0,0.0002]
[1610162502291,0.1,39850.0,39835.0,0.0002]
[1610162502491,0.1,39850.0,39832.0,3.7911]
[1610162502492,0.1,39850.0,39834.0,0.0002]
[1610162502894,0.1,39850.0,39836.0,0.0002]
[1610162503093,0.13632608,39837.0,39835.0,0.0002]
[1610162503293,0.25158608,39837.0,39832.0,3.7911]
[1610162503492,0.25158608,39837.0,39812.0,0.10877]
[1610162503695,0.25158608,39837.0,39833.0,0.0002]
[1610162503893,0.25158608,39837.0,39813.0,0.00787528]
[1610162504093,0.25158608,39837.0,39834.0,0.0002]
[1610162504495,0.25158608,39837.0,39814.0,0.00767523]
[1610162504496,0.25158608,39837.0,39827.0,3.0388]
[1610162504699,0.25158608,39837.0,39835.0,0.0002]
[1610162504895,0.25158608,39837.0,39828.0,0.0002]
[1610162505096,0.13632608,39829.0,39828.0,0.0002]
[1610162505297,0.13632608,39829.0,39827.0,3.0388]
[1610162505495,0.13632608,39829.0,39828.0,0.0002]
[1610162506695,0.11526,39837.0,39828.0,0.0002]
[1610162506895,0.29953118,39850.0,39828.0,0.0002]
[1610162507098,0.29953118,39850.0,39838.0,0.13632608]
[1610162507300,0.29953118,39850.0,39840.0,4.0019]
[1610162507898,0.29953118,39850.0,39841.0,0.0002]
[1610162508297,0.29953118,39850.0,39840.0,4.0019]
[1610162508598,0.29953118,39850.0,39842.0,0.0002]
[1610162508800,0.29953118,39850.0,39841.0,0.0002]
[1610162508997,0.29953118,39850.0,39843.0,0.13632608]
[1610162509397,0.29953118,39850.0,39844.0,0.0002]
[1610162510198,0.29953118,39850.0,39845.0,0.0002]
[1610162510699,0.29953118,39850.0,39844.0,0.0002]
[1610162510998,0.29953118,39850.0,39846.0,0.0002]
[1610162511199,0.29953118,39850.0,39845.0,0.0002]
[1610162511598,0.29953118,39850.0,39844.0,0.0002]
[1610162511800,0.29953118,39850.0,39846.0,0.0002]
[1610162512002,0.29953118,39850.0,39845.0,0.0002]
[1610162512405,0.29953118,39850.0,39847.0,0.0002]
[1610162512601,0.29953118,39850.0,39846.0,0.0002]
[1610162512802,0.29953118,39850.0,39848.0,0.0002]
[1610162513001,0.13632608,39849.0,39848.0,0.0002]
[1610162513202,0.13632608,39849.0,39847.0,0.0002]
[1610162513504,0.13632608,39849.0,39848.0,0.0002]
[1610162514004,0.13632608,39849.0,39835.0,0.00787366]
[1610162514204,0.13632608,39849.0,39848.0,0.0002]
[1610162514405,0.13632608,39849.0,39836.0,0.0002]
[1610162514805,0.13632608,39849.0,39848.0,0.0002]
[1610162515006,0.13632608,39849.0,39837.0,0.0002]
[1610162515205,0.13632608,39849.0,39834.0,3.115]
[1610162515406,0.13632608,39849.0,39838.0,0.0002]
[1610162515806,0.13632608,39849.0,39835.0,0.0002]
[1610162516007,0.13632608,39849.0,39839.0,0.0002]
[1610162516206,0.13632608,39849.0,39836.0,0.0002]
[1610162516607,0.13632608,39849.0,39840.0,0.0002]
[1610162516806,0.13632608,39849.0,39837.0,0.0002]
[1610162517008,0.13632608,39849.0,39841.0,0.0002]
[1610162517209,0.29953118,39850.0,39841.0,0.0002]
[1610162517408,0.29953118,39850.0,39838.0,0.0002]
[1610162517609,0.29953118,39850.0,39842.0,0.0002]
[1610162517809,0.29953118,39850.0,39839.0,0.0002]
[1610162518109,0.29953118,39850.0,39843.0,0.0002]
[1610162518309,0.29953118,39850.0,39840.0,0.0002]
[1610162518710,3.4133,39846.0,39844.0,0.0002]
[1610162518912,3.4133,39846.0,39841.0,0.0002]
[1610162519111,0.13632608,39842.0,39822.0,3.6299]
[1610162519309,0.22435608,39842.0,39822.0,3.6299]
[1610162519511,0.224069,39842.0,39822.0,3.6299]
[1610162519711,0.224069,39842.0,39823.0,0.0002]
[1610162521111,0.13632608,39824.0,39823.0,0.0002]
[1610162521513,0.23404608,39824.0,39823.0,0.0002]
[1610162523216,0.09772,39824.0,39823.0,0.0002]
[1610162523413,0.08803,39842.0,39823.0,0.0002]
[1610162524417,0.1569,39845.0,39823.0,0.0002]
[1610162524617,0.1569,39845.0,39823.0,0.00787473]
[1610162525218,0.1569,39845.0,39827.0,0.13632608]
[1610162525815,0.1569,39845.0,39828.0,0.0002]
[1610162527215,0.13632608,39829.0,39828.0,0.0002]
[1610162527819,0.13632608,39829.0,39823.0,0.00787505]
[1610162528217,0.13632608,39829.0,39828.0,0.0002]
[1610162528519,0.13632608,39829.0,39824.0,0.0002]
[1610162528718,0.13632608,39829.0,39828.0,0.0002]
[1610162528918,0.13632608,39829.0,39822.0,3.6299]
[1610162528919,0.13632608,39829.0,39825.0,0.0002]
[1610162529118,0.13632608,39829.0,39828.0,0.0002]
[1610162529519,0.13632608,39829.0,39827.0,0.13632608]
[1610162529719,0.13632608,39829.0,39828.0,0.00787486]
[1610162531422,0.13522608,39829.0,39828.0,0.00787486]
[1610162532924,0.13522608,39829.0,39828.0,0.49377486]
[1610162534427,0.12362608,39829.0,39828.0,0.49377486]
[1610162536029,0.10708,39841.0,39828.0,0.49377486]
[1610162536228,0.10708,39841.0,39828.0,0.02755341]
[1610162536427,0.01536525,39864.0,39828.0,0.02755341]
[1610162536428,0.1569,39864.0,39828.0,0.02755341]
[1610162536628,0.1569,39864.0,39842.0,3.7487]
[1610162537028,0.1569,39864.0,39843.0,0.00787301]
[1610162537227,0.1569,39864.0,39849.0,0.13632608]
[1610162537228,0.13632608,39851.0,39849.0,0.13632608]
[1610162537428,0.28763118,39850.0,39849.0,0.64162608]
[1610162537629,0.28763118,39850.0,39849.0,0.64182608]
[1610162537829,0.28763118,39850.0,39849.0,0.6494987]
[1610162540533,0.27603118,39850.0,39849.0,0.6494987]
[1610162541132,0.27603118,39850.0,39849.0,0.66916413]
[1610162541333,0.27603118,39850.0,39849.0,0.6494987]
[1610162543735,0.26383118,39850.0,39849.0,0.6494987]
[1610162544937,0.08536,39877.0,39849.0,0.6494987]
[1610162545337,0.08536,39877.0,39876.0,0.13632608]
[1610162545738,0.08536,39877.0,39876.0,0.13652608]
[1610162546336,0.08536,39877.0,39876.0,0.13632608]
[1610162546736,0.07346,39877.0,39876.0,0.13632608]
[1610162546937,0.1569,39904.0,39876.0,3.49572608]
[1610162547139,0.1569,39904.0,39876.0,0.13632608]
[1610162547339,0.13632608,39900.0,39898.0,0.13632608]
[1610162547739,0.26158608,39900.0,39898.0,0.13632608]
[1610162549841,0.24968608,39900.0,39898.0,0.13632608]
[1610162550238,0.24968608,39900.0,39874.0,0.10003]
[1610162550639,0.24968608,39900.0,39881.0,2.9074]
[1610162551039,0.24968608,39900.0,39882.0,0.0002]
[1610162551441,0.24968608,39900.0,39899.0,0.13632608]
[1610162551839,0.24968608,39900.0,39899.0,3.01182608]
[1610162552839,0.23818608,39900.0,39899.0,3.01182608]
[1610162554041,0.23818608,39900.0,39899.0,2.8755]
[1610162555242,0.12526,39900.0,39899.0,2.8755]
[1610162555441,0.13632608,39908.0,39899.0,3.01182608]
[1610162556042,0.12402608,39908.0,39899.0,0.13632608]
[1610162556243,0.12402608,39908.0,39907.0,3.7918]
[1610162557444,0.12402608,39908.0,39907.0,3.92812608]
[1610162558850,0.12402608,39908.0,39907.0,0.13632608]
[1610162559146,0.11202608,39908.0,39907.0,0.13632608]
[1610162561649,0.1569,39924.0,39907.0,0.13632608]
[1610162561849,0.1569,39924.0,39915.0,4.0289]
[1610162562249,0.145,39924.0,39915.0,4.0289]
[1610162562649,0.1569,39936.0,39915.0,4.0289]
[1610162563249,0.00030652,39935.0,39915.0,4.0289]
[1610162563449,0.00030652,39935.0,39917.0,0.13632608]
[1610162563650,0.12100652,39935.0,39917.0,0.13632608]
[1610162563953,0.00030652,39934.0,39917.0,0.13632608]
[1610162564150,0.00030652,39934.0,39915.0,3.68537732]
[1610162565352,0.10920652,39935.0,39915.0,3.68537732]
[1610162565552,0.13632608,39916.0,39915.0,3.68537732]
[1610162566954,0.13632608,39916.0,39902.0,0.11637]
[1610162567555,0.13632608,39903.0,39899.0,3.4679]
[1610162567755,0.13632608,39903.0,39892.0,0.09569]
[1610162568156,0.13632608,39903.0,39890.0,3.71432608]
[1610162568556,0.12442608,39903.0,39890.0,3.71432608]
[1610162568756,0.12442608,39903.0,39890.0,3.578]
[1610162569557,0.13632608,39891.0,39890.0,3.578]
[1610162571559,0.09722,39910.0,39890.0,3.578]
[1610162571762,0.09722,39910.0,39883.0,0.13632608]
[1610162571959,0.09722,39910.0,39893.0,3.6697]
[1610162572160,0.09722,39910.0,39890.0,0.09333]
[1610162572361,0.09722,39910.0,39897.0,2.8839]
[1610162572562,0.09722,39910.0,39890.0,0.09333]
[1610162572760,0.09722,39910.0,39909.0,3.0845]
[1610162573561,0.23354608,39910.0,39909.0,3.0845]
[1610162574662,0.22144608,39910.0,39909.0,3.0845]
[1610162575461,0.22144608,39910.0,39909.0,3.22082608]
[1610162576963,0.22144608,39910.0,39890.0,0.09333]
[1610162577163,0.22144608,39910.0,39898.0,4.1212]
[1610162577563,0.08512,39910.0,39906.0,0.13632608]
[1610162577762,0.07332,39910.0,39909.0,0.4668]
[1610162577962,0.1569,39917.0,39909.0,0.4668]
[1610162579563,0.13632608,39910.0,39909.0,0.4668]
[1610162579962,0.26160608,39910.0,39909.0,0.4668]
[1610162580765,0.24970608,39910.0,39909.0,0.4668]
[1610162583866,0.23820608,39910.0,39909.0,0.4668]
[1610162586869,0.22610608,39910.0,39909.0,0.4668]